[Event "FIDE WSTC Open 50 2025"]
[Site "Prague"]
[Date "2025.02.25"]
[Round "8.12"]
[White "Arnason, Jon L"]
[Black "D'Amore, Carlo"]
[Result "0-1"]
[Annotator "TA"]
[ECO "C64"]
[WhiteElo "2405"]
[BlackElo "2362"]
[PlyCount "76"]
[EventDate "2025.02.17"]
[EventType "team-tourn"]
[EventCountry "CZE"]
[SourceTitle "playchess.com"]
[Source "ChessBase"]
[SourceQuality "1"]
[TimeControl "40/5400+30:1800+30"]

{[%evp 9,76,45,41,39,52,43,52,4,3,0,-4,0,3,-8,0,-38,-9,-29,-24,-22,-13,-22,-25,-31,-10,-19,-14,-50,-19,-27,0,0,17,0,6,0,0,-28,-25,-95,-94,-308,-306,-307,-305,-306,-231,-336,-323,-307,-187,-276,-313,-313,-299,-283,-237,-288,-293,-368,-365,-805,-797,-816,-810,-805,-791,-844,-842]} 1. e4 {[%emt 0:00:08]} e5 {[%emt 0:00:32]} 2. Nf3 {[%emt 0:00:20]} Nc6 {[%emt 0:00:07]} 3. Bb5 {[%emt 0:00:13]} Bc5 {[%emt 0:00:45]} 4. O-O {[%emt 0:03:39]} d6 {[%emt 0:02:03]} 5. c3 {[%emt 0:01:35]} a6 {[%emt 0:00:15]} 6. Bxc6+ {[%emt 0:07:58] C64: Ruy Lopez: Classical Defence (3...Bc5) except 4 0-0 Nf6.} bxc6 {[%emt 0:00:07]} 7. d4 {[%emt 0:00:31]} exd4 {[%emt 0:00:21]} 8. Nxd4 {[%emt 0:12:45]} (8. cxd4 $14 {should be considered.} Bb6 9. Nc3) 8... Bd7 {[%emt 0:04:37]} 9. Nd2 $146 {[%emt 0:05:56]} (9. Nf5 Qf6 10. Be3 Ne7 11. Bxc5 dxc5 12. Nxe7 Qxe7 13. Na3 O-O 14. Re1 Qg5 15. Qxd7 {1-0 Guenther,R (852)-Newton,D (272) ZN-2020-0-04216}) 9... Ne7 {[%emt 0:21:02] Prevents Nf5.} 10. Nc4 {[%emt 0:04:56]} O-O {[%emt 0:01:43]} 11. Nb3 {[%emt 0:07:01]} Ba7 {[%emt 0:01:57]} 12. Bg5 {[%emt 0:01:14]} f6 {[%emt 0:01:46]} 13. Be3 {[%emt 0:00:30]} Bxe3 {[%emt 0:01:42]} 14. Nxe3 {[%emt 0:00:06]} a5 {[%emt 0:00:48]} 15. a4 {[%emt 0:05:07]} c5 {[%emt 0:05:57]} 16. Nc4 {[%emt 0:10:57]} Nc6 {[%emt 0:00:16]} 17. Qd5+ {[%emt 0:00:40]} Rf7 {[%emt 0:02:01]} 18. f4 {[%emt 0:02:04]} Qe8 {[%emt 0:00:33]} 19. Qd3 {[%emt 0:01:45]} Re7 {[%emt 0:07:51]} 20. Nbd2 {[%emt 0:01:13]} Kh8 {[%emt 0:03:22]} 21. Rae1 {[%emt 0:01:26]} Be6 {[%emt 0:02:24]} 22. Ne3 {[%emt 0:04:16]} Rb8 {[%emt 0:03:14]} 23. Nec4 {[%emt 0:04:47]} f5 {[%emt 0:05:35]} 24. Ne3 {[%emt 0:09:49]} (24. b3 $11) 24... Rxb2 $17 {[%emt 0:05:59][%csl Oa4,Oc3] White has weak pawns} 25. Rb1 $2 {[%emt 0:09:56] [#] This costs White the game.} (25. exf5 $2 Bxf5 26. Qxf5 Rxd2 $19 (26... Rxe3 27. Ne4 $15)) (25. Nd5 $17 Bxd5 26. Qxd5) 25... fxe4 $19 {[%emt 0:02:40]} 26. Qe2 {[%emt 0:00:07]} Ra2 {[%emt 0:05:34]} 27. f5 {[%emt 0:01:03]} Bf7 {[%emt 0:01:01][%cal Od6d5]} 28. f6 {[%emt 0:00:32]} (28. Ra1 {keeps fighting.}) 28... gxf6 {[%emt 0:02:18]} 29. Rxf6 {[%emt 0:00:07]} Re6 {[%emt 0:01:15]} (29... Rxa4 $2 30. Rbf1 $19) 30. Rf4 {[%emt 0:01:36]} (30. Qf1 $142 Bg8 31. Rxe6 Qxe6 32. Nxe4) 30... Ne5 {[%emt 0:00:49]} (30... Rxa4 31. Rbf1 Bg8 32. Nd5 $17) 31. Rbf1 {[%emt 0:00:14]} Rg6 {[%emt 0:06:23]} (31... Qxa4 $2 32. Rxf7 Nxf7 33. Rxf7 $16) 32. Rxe4 {[%emt 0:01:14]} Be6 {[%emt 0:01:18][%cal Og6g8]} ({But not} 32... Rxa4 33. Nec4 Bxc4 34. Nxc4 $17) 33. Ref4 {[%emt 0:00:27]} Rg8 {[%emt 0:00:20] Repels Rf8} (33... Rxa4 $2 {is the wrong capture.} 34. Rf8+ $18) 34. Qd1 {[%emt 0:00:53]} Qg6 {[%emt 0:00:57] [#] And now ...Qd3 would win.} 35. Kh1 $2 {[%emt 0:01:04]} (35. Qe2) 35... Qd3 {[%emt 0:01:42][%csl LRc3,LRd2,LRe3] Black is clearly winning.} 36. Ndc4 {[%emt 0:00:54]} Qxd1 {[%emt 0:01:19]} 37. Rxd1 {[%emt 0:00:07]} Nxc4 {[%emt 0:01:12]} 38. Nxc4 {[%emt 0:00:07]} Rxa4 {[%emt 0:01:34] Weighted Error Value: White=0.53/Black=0.12 (very precise)   Loses game:     	White=1     	---        Mistake:       	White=5     	---        Inaccurate:     	White=3     	Black=3      OK:         	White=8     	Black=15     Best:        	---       	Black=2} 0-1

[Event "FIDE WSTC Open 50 2025"]
[Site "Prague"]
[Date "2025.02.25"]
[Round "8.13"]
[White "Bischoff, Klaus"]
[Black "Svensson, Bengt"]
[Result "1-0"]
[Annotator "TA"]
[ECO "A11"]
[WhiteElo "2432"]
[BlackElo "2297"]
[PlyCount "69"]
[EventDate "2025.02.17"]
[EventType "team-tourn"]
[EventCountry "CZE"]
[SourceTitle "playchess.com"]
[Source "ChessBase"]
[SourceQuality "1"]
[TimeControl "40/5400+30:1800+30"]

{[%evp 14,69,8,0,0,10,41,38,41,44,40,42,43,41,39,29,35,27,52,21,64,40,45,42,30,41,34,47,47,23,135,104,111,120,137,83,182,172,310,203,297,261,245,193,193,162,161,161,229,218,283,242,256,237,387,358,920,904]} 1. c4 {[%emt 0:00:15]} c6 {[%emt 0:00:33]} 2. Nf3 {[%emt 0:00:31]} d5 {[%emt 0:00:08]} 3. e3 {[%emt 0:00:13]} Nf6 {[%emt 0:00:28]} 4. Qc2 {[%emt 0:00:59]} e6 {[%emt 0:02:29]} 5. b3 {[%emt 0:01:21]} Nbd7 {[%emt 0:01:31]} 6. Bb2 {[%emt 0:00:12]} Bd6 {[%emt 0:00:17]} 7. Nc3 {[%emt 0:00:50]} O-O {[%emt 0:03:09]} 8. Be2 {[%emt 0:01:47]} Qe7 {[%emt 0:05:15] A11: English Opening: 1...c6.} 9. O-O {[%emt 0:04:44]} b6 {[%emt 0:03:29]} 10. cxd5 {[%emt 0:01:44]} cxd5 {[%emt 0:03:21] White is slightly better.} 11. Nb5 {[%emt 0:09:52]} Ba6 {[%emt 0:06:33]} 12. Rfc1 {[%emt 0:03:30]} Rac8 {[%emt 0:05:31]} 13. Qd1 {[%emt 0:01:06]} Bxb5 {[%emt 0:00:37]} 14. Bxb5 {[%emt 0:00:09]} Ba3 {[%emt 0:00:15]} 15. Bxa3 {[%emt 0:02:48]} Qxa3 {[%emt 0:03:27]} 16. d4 {[%emt 0:04:30]} a6 {[%emt 0:20:01]} 17. Bxd7 {[%emt 0:04:31]} Nxd7 {[%emt 0:00:15]} 18. Rc2 {[%emt 0:00:09]} Rxc2 {[%emt 0:04:04]} 19. Qxc2 {[%emt 0:00:10]} h6 $146 {[%emt 0:00:04]} ({Predecessor:} 19... g6 20. Rc1 a5 21. h3 b5 22. Qc7 a4 23. bxa4 bxa4 24. Rc2 Qb4 25. g4 Nb6 26. Qc5 Qb1+ 27. Rc1 Qb2 28. Rc2 {½-½ Anastasian,A (2602)-Asrian,K (2646) ARM-ch 66th Yerevan 2006 (1)}) 20. Rc1 {[%emt 0:12:15]} b5 {[%emt 0:02:50]} 21. Qc7 {[%emt 0:11:01]} Qb2 {[%emt 0:04:13]} (21... Nb6 $11 {keeps the balance.}) 22. Kf1 $16 {[%emt 0:06:44]} Nf6 {[%emt 0:02:25] [#]} 23. Rc2 $1 {[%emt 0:04:46]} Qa3 {[%emt 0:09:34]} 24. Ne5 {[%emt 0:00:45] White is more active.} (24. Qb7 $142) 24... Qb4 {[%emt 0:03:43]} (24... a5 $16) 25. f3 {[%emt 0:01:37]} g6 {[%emt 0:04:18]} (25... a5 $142 26. Nc6 Qa3) 26. Ke2 {[%emt 0:02:02]} Kg7 {[%emt 0:01:06]} (26... h5 {might work better.} 27. Qc5 Qxc5 28. Rxc5 (28. dxc5 Rc8 $18) 28... h4) 27. Nd3 {[%emt 0:00:57]} Qa3 {[%emt 0:00:07]} 28. Qe5 {[%emt 0:00:09]} Qe7 {[%emt 0:02:10]} 29. Nf4 $36 {[%emt 0:02:23][%mdl 2048] Keeping Black busy.} Kg8 {[%emt 0:03:57] [#]} 30. Qc7 $1 {[%emt 0:00:41]} Nd7 {[%emt 0:03:53]} (30... Re8 $142 31. Qxe7 Rxe7) 31. Nd3 $18 {[%emt 0:00:21][%cal Bf4d3,Bd3e5,Be5g4][%mdl 32]} Qe8 {[%emt 0:02:20]} 32. Qd6 {[%emt 0:00:21] Black is weak on the dark squares} Nb8 {[%emt 0:01:41]} 33. Rc7 {[%emt 0:00:24]} Kg7 {[%emt 0:00:42]} (33... Qd8 $142 34. Qxd8 Rxd8) 34. Ne5 {[%emt 0:01:46] Threatens to win with Ng4.} Kg8 $2 {[%emt 0:00:52]} (34... h5 35. Qb6 b4) 35. Ng4 {[%emt 0:01:08] Weighted Error Value: White=0.14 (very precise) /Black=0.58  Mistake:       	White=1     	Black=7      Inaccurate:     	White=1     	Black=2      OK:         	White=12    	Black=5      Best:        	White=2     	Black=1      Strong:       	White=1     	---} 1-0

[Event "FIDE WSTC Open 50 2025"]
[Site "Prague"]
[Date "2025.02.25"]
[Round "8.14"]
[White "Svenn, Gosta"]
[Black "Seul, Georg"]
[Result "1/2-1/2"]
[Annotator "TA"]
[ECO "A45"]
[WhiteElo "2290"]
[BlackElo "2329"]
[PlyCount "79"]
[EventDate "2025.02.17"]
[EventType "team-tourn"]
[EventCountry "CZE"]
[SourceTitle "playchess.com"]
[Source "ChessBase"]
[SourceQuality "1"]
[TimeControl "40/5400+30:1800+30"]

{[%evp 9,79,0,0,0,0,0,18,10,22,15,57,56,55,46,47,32,28,28,36,28,25,15,21,16,16,0,0,0,0,0,0,-15,-33,-33,-22,-24,-26,-29,-29,-50,-25,-18,0,-52,-51,-52,-56,-52,-52,-66,-64,-70,-70,-72,-66,-54,-57,-67,-78,-68,-19,-95,-60,-93,0,0,0,-70,0,0,0,-58]} 1. d4 {[%emt 0:00:08]} Nf6 {[%emt 0:00:08]} 2. Nc3 {[%emt 0:00:08]} d5 {[%emt 0:00:14]} 3. Bf4 {[%emt 0:00:07]} c5 {[%emt 0:00:16]} 4. e3 {[%emt 0:00:11]} cxd4 {[%emt 0:00:13]} 5. exd4 {[%emt 0:00:06]} a6 {[%emt 0:00:14]} 6. Nf3 {[%emt 0:12:49] B13: Caro-Kann: Exchange Variation and Panov-Botvinnik Attack.} Nc6 {[%emt 0:01:34]} 7. Ne5 {[%emt 0:01:07]} h5 {[%emt 0:01:20]} 8. Nxc6 {[%emt 0:22:16]} bxc6 {[%emt 0:01:10]} 9. Bd3 {[%emt 0:00:10]} g6 $146 {[%emt 0:01:44]} (9... Qb6 10. Ne2 g6 11. O-O Bg7 12. b3 O-O 13. Be5 c5 14. c3 cxd4 15. Nxd4 Ng4 16. Bxg7 Kxg7 {½-½ Rook,D (2398)-Szczepanski,Z (2398) ST-2022-0-00223}) 10. O-O {[%emt 0:02:16]} Bg7 {[%emt 0:05:44]} 11. Re1 {[%emt 0:06:02]} O-O {[%emt 0:03:42]} 12. Qd2 {[%emt 0:01:15]} a5 {[%emt 0:03:06]} 13. Na4 {[%emt 0:06:29]} Ba6 {[%emt 0:01:48]} 14. Bxa6 {[%emt 0:05:41]} Rxa6 {[%emt 0:00:09]} 15. Nc5 {[%emt 0:00:15]} Ra7 {[%emt 0:00:48]} 16. Bg5 {[%emt 0:01:10]} Re8 {[%emt 0:05:36]} 17. a4 {[%emt 0:11:20]} Nd7 {[%emt 0:15:52]} 18. Nb3 {[%emt 0:00:36]} Nf6 {[%emt 0:02:07]} 19. Nc5 {[%emt 0:02:54] Repels Ne4} Nd7 {[%emt 0:00:26]} 20. Qc3 {[%emt 0:00:34]} Nxc5 {[%emt 0:09:22]} 21. Qxc5 {[%emt 0:00:08]} Rb7 {[%emt 0:09:45]} 22. b3 {[%emt 0:02:36][%cal Og2g3]} Qc7 {[%emt 0:06:08]} 23. Rad1 {[%emt 0:03:43]} e6 {[%emt 0:00:31]} 24. Qc3 {[%emt 0:00:24]} Rc8 {[%emt 0:02:19]} (24... c5 $5 25. Qxc5 Qxc5 26. dxc5 Rc8 $17) 25. Qf3 $1 {[%emt 0:01:41]} Rb4 {[%emt 0:08:28]} 26. Bf6 {[%emt 0:03:32]} (26. Be3 $11) 26... c5 {[%emt 0:07:02]} 27. Bxg7 {[%emt 0:00:14]} Kxg7 {[%emt 0:00:08]} 28. dxc5 {[%emt 0:00:12]} Qxc5 {[%emt 0:01:06]} 29. Re2 {[%emt 0:00:30]} Qc3 {[%emt 0:00:35]} 30. Qxc3+ {[%emt 0:04:47]} Rxc3 $15 {[%emt 0:00:03][%mdl 4096] Endgame KRR-KRR} 31. Kf1 {[%emt 0:00:14]} Rb7 {[%emt 0:06:21]} 32. Ke1 {[%emt 0:01:01]} Rbc7 {[%emt 0:00:07]} 33. Rdd2 {[%emt 0:00:09]} Kf6 {[%emt 0:00:57]} 34. Kd1 {[%emt 0:00:09]} R7c5 {[%emt 0:00:42]} (34... Kf5 $15 35. Rd4 R7c5) 35. f4 {[%emt 0:06:53]} (35. Re3 $1 $11 {was the only way to keep the balance.}) 35... h4 {[%emt 0:00:47]} 36. Rd4 {[%emt 0:01:23]} Kf5 {[%emt 0:01:40]} 37. Re5+ {[%emt 0:00:26]} Kf6 {[%emt 0:00:04]} 38. Re2 {[%emt 0:00:32]} Kf5 {[%emt 0:01:44]} 39. Re5+ {[%emt 0:00:06]} Kf6 {[%emt 0:00:03]} 40. Re2 $1 {[%emt 0:00:18] Weighted Error Value: White=0.10 (very precise) /Black=0.11 (very precise)   Mistake:       	White=2     	Black=1      Inaccurate:     	White=1     	Black=2      OK:         	White=15    	Black=14     Best:        	White=2     	Black=2      Strong:       	White=2     	---} 1/2-1/2

[Event "FIDE WSTC Open 50 2025"]
[Site "Prague"]
[Date "2025.02.25"]
[Round "8.15"]
[White "Schulz, Klaus-Juergen"]
[Black "Jaderberg, Bjorn"]
[Result "1-0"]
[Annotator "TA"]
[ECO "A96"]
[WhiteElo "2345"]
[BlackElo "2134"]
[PlyCount "141"]
[EventDate "2025.02.17"]
[EventType "team-tourn"]
[EventCountry "CZE"]
[SourceTitle "playchess.com"]
[Source "ChessBase"]
[SourceQuality "1"]
[TimeControl "40/5400+30:1800+30"]

{[%evp 16,141,28,16,19,21,11,16,14,-15,-9,-24,-22,-54,-42,-49,-37,-28,-35,-48,-59,-64,0,-25,0,-7,0,-42,0,0,0,0,19,8,11,5,23,10,7,4,1,12,29,0,27,0,0,0,25,0,25,25,25,25,25,0,25,25,25,0,25,0,25,25,25,25,25,0,25,25,25,25,25,25,25,25,25,25,25,25,25,25,25,25,125,0,0,0,50,34,97,9,110,61,153,153,144,144,153,145,145,138,121,130,140,137,154,161,568,572,543,460,521,435,477,114,111,0,424,368,552,569,569,540,29982,29983,29983,29984]} 1. d4 {[%emt 0:00:06]} e6 {[%emt 0:00:09]} 2. Nf3 {[%emt 0:01:22]} f5 {[%emt 0:00:19]} 3. g3 {[%emt 0:01:43]} Nf6 {[%emt 0:00:14]} 4. Bg2 {[%emt 0:00:04]} Be7 {[%emt 0:00:21]} 5. O-O {[%emt 0:01:12]} O-O {[%emt 0:00:11]} 6. c4 {[%emt 0:00:26]} d6 {[%emt 0:01:51]} 7. Nc3 {[%emt 0:02:27]} Ne4 {[%emt 0:00:49]} 8. Qc2 {[%emt 0:11:07]} Nxc3 {[%emt 0:00:24]} 9. bxc3 {[%emt 0:01:16]} Nc6 $1 {[%emt 0:03:35] A96: Classical Dutch: Fluid Systems: Early deviations.} 10. d5 {[%emt 0:30:03]} Na5 {[%emt 0:26:01]} 11. dxe6 {[%emt 0:03:29]} c5 {[%emt 0:00:19] The position is equal. Repels Nd4} 12. Nd2 {[%emt 0:04:32]} Bxe6 {[%emt 0:00:43][%cal Of8f7]} 13. Bd5 {[%emt 0:00:12]} Qd7 {[%emt 0:03:12]} 14. e3 $146 {[%emt 0:11:55]} ({Predecessor:} 14. Qd3 Rae8 15. Rb1 Kh8 16. f4 Bd8 17. Re1 Bb6 18. e3 Qa4 19. Rb2 Bxd5 20. Qxd5 {0-1 Kanep,M (2388)-Del Rio de Angelis,S (2420) Valencia Cuna op 5th 2024 (6)}) 14... Kh8 {[%emt 0:03:57]} 15. Rb1 {[%emt 0:00:38]} Rab8 {[%emt 0:01:02]} 16. Qd3 {[%emt 0:03:27]} Bf6 {[%emt 0:04:07]} 17. Qc2 {[%emt 0:11:46]} Rbe8 {[%emt 0:04:42]} 18. Rd1 {[%emt 0:02:29]} Bxd5 {[%emt 0:01:36]} 19. cxd5 {[%emt 0:00:06]} b5 {[%emt 0:00:20]} 20. c4 {[%emt 0:01:20]} b4 {[%emt 0:01:31]} 21. Nb3 {[%emt 0:00:15]} Nxb3 {[%emt 0:02:05]} 22. axb3 {[%emt 0:00:08]} a5 {[%emt 0:02:26][%cal Oa5a4]} 23. Bb2 {[%emt 0:00:06]} Ra8 {[%emt 0:02:23]} 24. Bxf6 {[%emt 0:01:01]} Rxf6 {[%emt 0:00:16]} 25. Ra1 {[%emt 0:00:12]} Ra7 {[%emt 0:04:47]} 26. Ra4 {[%emt 0:00:24]} Rf8 {[%emt 0:00:13]} 27. Rda1 {[%emt 0:00:28]} Rfa8 {[%emt 0:00:07]} 28. Kg2 {[%emt 0:00:38]} Qf7 {[%emt 0:00:25]} 29. Qd3 {[%emt 0:00:57]} Qf6 {[%emt 0:01:00]} 30. R1a2 {[%emt 0:00:05]} h6 {[%emt 0:02:14]} 31. h4 {[%emt 0:00:26][%cal Bh2h4,Bh4h5][%mdl 32]} Kg8 {[%emt 0:02:43]} 32. Ra1 {[%emt 0:00:29]} Qe5 {[%emt 0:01:20]} 33. h5 {[%emt 0:04:08]} Qf6 {[%emt 0:01:11]} 34. Rh1 {[%emt 0:00:45]} Rf8 {[%emt 0:01:52]} 35. Rha1 {[%emt 0:01:53]} Rfa8 {[%emt 0:00:09]} 36. Qc2 {[%emt 0:00:34]} Qe5 {[%emt 0:02:01]} 37. Qd3 {[%emt 0:01:07]} Qf6 {[%emt 0:00:36]} 38. Rh1 {[%emt 0:01:00]} Rf8 {[%emt 0:00:12]} 39. Rh4 {[%emt 0:02:25]} Qg5 {[%emt 0:08:30]} 40. Kf3 {[%emt 0:01:20]} Re8 {[%emt 0:03:43]} 41. Kg2 {[%emt 0:30:55]} (41. Qc2 {with more complications.} Rae7 42. Rh3 Qg4+ 43. Kg2) 41... Rf8 {[%emt 0:30:45]} 42. Qc2 {[%emt 0:01:36]} Re8 {[%emt 0:00:53]} 43. Qb1 {[%emt 0:00:00]} Rf8 {[%emt 0:00:00]} 44. Qd1 {[%emt 0:00:00]} Qe7 {[%emt 0:00:00]} 45. Qa1 {[%emt 0:00:00]} Rfa8 {[%emt 0:00:00]} 46. Rf4 {[%emt 0:00:00][%cal Oa1b1]} Qg5 {[%emt 0:00:00]} 47. Qd1 {[%emt 0:00:00]} Rf7 {[%emt 0:00:00]} 48. Qh1 {[%emt 0:00:00]} Kf8 {[%emt 0:00:00]} 49. Qh4 {[%emt 0:00:00]} Ke7 {[%emt 0:00:00]} (49... Kg8 $11) 50. e4 {[%emt 0:00:00]} (50. Qh3 $16) 50... Qxh4 $11 {[%emt 0:00:00]} 51. Rxh4 {[%emt 0:00:00]} fxe4 {[%emt 0:00:00]} (51... Kf6 $11) 52. Rxe4+ {[%emt 0:00:00][%mdl 4096] Endgame KRR-KRR} Kd7 {[%emt 0:00:00]} (52... Kf8 $1 $14) 53. Rg4 {[%emt 0:00:00]} (53. Re1 $16) 53... Kc7 {[%emt 0:00:00]} (53... Ke8 $11 {remains equal.}) 54. Rg6 {[%emt 0:00:00]} ({White should play} 54. f4 $1 $16) 54... Rd7 {[%emt 0:00:00]} (54... Re7 $14) 55. Re6 $16 {[%emt 0:00:00]} Kb6 {[%emt 0:00:00]} 56. f4 {[%emt 0:00:00][%cal Bf2f4,Bf4f5][%mdl 32]} Rf8 {[%emt 0:00:00]} 57. Kf3 {[%emt 0:00:00]} Rfd8 {[%emt 0:00:00]} 58. Ke4 {[%emt 0:00:00]} Rf7 {[%emt 0:00:00]} 59. Ra1 {[%emt 0:00:00]} Ka6 {[%emt 0:00:00]} 60. g4 {[%emt 0:00:00]} Kb6 {[%emt 0:00:00]} 61. f5 {[%emt 0:00:00]} Rf6 $2 {[%emt 0:00:00]} (61... Rfd7 {is more resistant.} 62. Kf3 Ra7) 62. Re7 $1 $18 {[%emt 0:00:00]} Rg8 {[%emt 0:00:00]} 63. Kd3 {[%emt 0:00:00]} Rff8 {[%emt 0:00:00]} 64. Kc2 {[%emt 0:00:00]} Ra8 {[%emt 0:00:00]} 65. Rd7 $2 {[%emt 0:00:00]} (65. Rae1 $18 {is more deadly.}) 65... Rad8 $16 {[%emt 0:00:00]} 66. Re7 $2 {[%emt 0:00:00][%mdl 8192] White has more active pieces.} (66. Rxd8 $1 $16 Rxd8 67. Re1) 66... Ra8 $1 $18 {[%emt 0:00:26]} 67. Kb2 {[%emt 0:00:05]} Rge8 {[%emt 0:00:43] [#]} (67... Rac8 $142 68. Rae1 Rc7 69. Rxc7 Kxc7 70. Re7+ Kd8) 68. Rae1 $1 {[%emt 0:00:18]} (68. Rxg7 Re2+ 69. Kc1 Rae8 $19) 68... Rxe7 {[%emt 0:00:55]} 69. Rxe7 {[%emt 0:00:01]} Ra7 {[%emt 0:00:19] [#]} 70. Rxa7 $1 {[%emt 0:00:59]} Kxa7 {[%emt 0:00:09] [#]} 71. g5 $1 {[%mdl 512] Weighted Error Value: White=0.16 (very precise) /Black=0.16 (very precise)   Missed win:     	White=1     	---        Mistake:       	White=4     	Black=7      Inaccurate:     	White=5     	Black=4      OK:         	White=10    	Black=21     Best:        	White=2     	Black=2      Strong:       	White=3     	Black=1} 1-0

[Event "FIDE WSTC Open 50 2025"]
[Site "Prague"]
[Date "2025.02.25"]
[Round "8.16"]
[White "Wengholm, Anders"]
[Black "Wolf, Volker"]
[Result "1/2-1/2"]
[Annotator "TA"]
[ECO "E06"]
[WhiteElo "2132"]
[BlackElo "2206"]
[PlyCount "53"]
[EventDate "2025.02.17"]
[EventType "team-tourn"]
[EventCountry "CZE"]
[SourceTitle "playchess.com"]
[Source "ChessBase"]
[SourceQuality "1"]
[TimeControl "40/5400+30:1800+30"]

{[%evp 19,53,0,0,-11,18,11,33,27,30,23,19,19,46,39,46,45,38,0,0,0,0,0,0,0,0,0,0,0,0,0,0,0,0,0,0,0]} 1. Nf3 {[%emt 0:00:09]} Nf6 {[%emt 0:00:11]} 2. c4 {[%emt 0:00:11]} e6 {[%emt 0:01:53]} 3. g3 {[%emt 0:00:17]} d5 {[%emt 0:00:52]} 4. d4 {[%emt 0:00:33]} Be7 {[%emt 0:00:32]} 5. Bg2 {[%emt 0:00:17]} O-O {[%emt 0:00:11]} 6. O-O {[%emt 0:00:15]} c6 {[%emt 0:03:23]} 7. Nbd2 {[%emt 0:02:20]} b6 {[%emt 0:01:55]} 8. Qc2 {[%emt 0:00:08]} Bb7 {[%emt 0:01:13]} 9. e4 {[%emt 0:00:23]} Na6 {[%emt 0:03:56]} 10. e5 {[%emt 0:14:39]} Nd7 {[%emt 0:00:38]} 11. cxd5 {[%emt 0:00:09] [#] d6 is the strong threat. E06: Closed Catalan: Early deviations.} cxd5 {[%emt 0:02:31]} 12. a3 {[%emt 0:01:35] Inhibits Nb4.} Rc8 {[%emt 0:10:11]} 13. Qd1 {[%emt 0:03:58] White is slightly better.} Nab8 {[%emt 0:02:43]} 14. Re1 {[%emt 0:00:13]} Ba6 {[%emt 0:00:25]} 15. Nf1 {[%emt 0:13:04]} h6 $146 {[%emt 0:03:11]} (15... Nc6 16. b4 Bc4 17. Ne3 b5 18. Nxc4 bxc4 19. Bd2 c3 20. Be3 a5 21. b5 Na7 {1-0 Niemann,H (2632)-Jumabayev,R (2583) Wch Blitz Almaty 2022 (14)}) 16. h4 {[%emt 0:06:13]} Qc7 {[%emt 0:01:48]} 17. Ne3 {[%emt 0:02:07] Inhibits Qc2.} Rfe8 {[%emt 0:02:28]} 18. Bf1 {[%emt 0:06:22]} Bxf1 {[%emt 0:03:42] The position is equal.} 19. Kxf1 {[%emt 0:00:07]} Qb7 {[%emt 0:01:21]} 20. Kg2 {[%emt 0:01:11]} Nc6 {[%emt 0:05:53]} 21. Qd3 {[%emt 0:07:15]} b5 {[%emt 0:06:15]} 22. b3 {[%emt 0:12:10]} Rc7 {[%emt 0:08:15]} 23. Bd2 {[%emt 0:02:30]} Rec8 {[%emt 0:01:15]} 24. Ng4 {[%emt 0:01:56]} Bf8 {[%emt 0:01:33]} 25. h5 {[%emt 0:06:35]} Qb6 {[%emt 0:03:20]} 26. Ne3 {[%emt 0:03:06]} Be7 {[%emt 0:04:18]} 27. Rec1 {[%emt 0:02:39] Weighted Error Value: White=0.04 (flawless) /Black=0.04 (flawless)   Inaccurate:     	White=1     	Black=2      OK:         	White=7     	Black=6} 1/2-1/2

[Event "FIDE WSTC Open 50 2025"]
[Site "Prague"]
[Date "2025.02.25"]
[Round "8.17"]
[White "Csiszar, Csaba"]
[Black "Wang, Pin"]
[Result "1/2-1/2"]
[Annotator "TA"]
[ECO "D02"]
[WhiteElo "2378"]
[BlackElo "2389"]
[PlyCount "19"]
[EventDate "2025.02.17"]
[EventType "team-tourn"]
[EventCountry "CZE"]
[SourceTitle "playchess.com"]
[Source "ChessBase"]
[SourceQuality "1"]
[TimeControl "40/5400+30:1800+30"]

{[%evp 9,19,16,21,13,11,0,0,0,13,1,14,10]} 1. d4 {[%emt 0:00:03]} d5 {[%emt 0:00:31]} 2. Nf3 {[%emt 0:00:05]} Nf6 {[%emt 0:00:39]} 3. Bf4 {[%emt 0:00:06]} c5 {[%emt 0:02:01]} 4. e3 {[%emt 0:00:04]} Nc6 {[%emt 0:01:48]} 5. Nbd2 {[%emt 0:00:05]} Bg4 {[%emt 0:01:42] The position is equal.} 6. Bb5 {[%emt 0:01:07] D02: 1 d4 d5 2 Nf3 sidelines, including 2...Nf6 3 g3 and 2...Nf6 3 Bf4.} e6 {[%emt 0:02:10]} 7. c4 {[%emt 0:00:20]} cxd4 {[%emt 0:02:10]} 8. exd4 {[%emt 0:00:14]} Bxf3 {[%emt 0:02:15]} 9. Qxf3 $146 {[%emt 0:02:25]} ({Predecessor:} 9. Nxf3 Bb4+ 10. Ke2 O-O 11. Qa4 Bd6 12. Bxd6 Qxd6 13. c5 Qc7 14. Rhc1 Ne7 15. Kf1 {0-1 Csiszar,C (2376)-Sjugirov,S (2651) HUN-ch Blitz 2024 (3)}) 9... Bb4 {[%emt 0:03:36]} 10. O-O {[%emt 0:16:19] An uneventful encounter.   Weighted Error Value: White=0.09 (flawless) /Black=0.04 (flawless)   OK:         	White=1     	Black=2} 1/2-1/2